[Event "Titled Tuesday Blitz April 25 Early 2023"]
[White "Necula, Iulian"]
[Black "Avazkhonov, Alikhon"]
[WhiteFideId "1232380"]
[BlackFideId "14208504"]
[WhiteElo "1790"]
[BlackElo "1739"]
[Result "0-1"]
[Round "02"]
[TimeControl "180+2"]
[Date "2023.04.25"]
[WhiteClock "0:00:27"]
[BlackClock "0:00:41"]

1. d4 {[%clk 0:03:00]}  Nf6 {[%clk 0:02:57]} 2. Nc3 {[%clk 0:03:00]}  d5 {[%clk 0:02:56]} 3. Bf4 {[%clk 0:03:00]}  a6 {[%clk 0:02:57]} 4. e3 {[%clk 0:02:59]}  Bf5 {[%clk 0:02:57]} 5. f3 {[%clk 0:02:58]}  e6 {[%clk 0:02:57]} 6. g4 {[%clk 0:02:58]}  Bg6 {[%clk 0:02:58]} 7. h4 {[%clk 0:02:58]}  h5 {[%clk 0:02:58]} 8. g5 {[%clk 0:02:58]}  Ng8 {[%clk 0:02:59]} 9. Bd3 {[%clk 0:02:57]}  c5 {[%clk 0:02:55]} 10. Bxg6 {[%clk 0:02:55]}  fxg6 {[%clk 0:02:56]} 11. Qd3 {[%clk 0:02:54]}  Kf7 {[%clk 0:02:48]} 12. O-O-O {[%clk 0:02:37]}  Nc6 {[%clk 0:02:45]} 13. a3 {[%clk 0:02:36]}  c4 {[%clk 0:02:45]} 14. Qe2 {[%clk 0:02:32]}  Qa5 {[%clk 0:02:41]} 15. Nb1 {[%clk 0:02:15]}  c3 {[%clk 0:02:27]} 16. Nxc3 {[%clk 0:02:00]}  Bxa3 {[%clk 0:02:19]} 17. e4 {[%clk 0:01:58]}  Qxc3 {[%clk 0:02:12]} 18. exd5 {[%clk 0:01:52]}  Bxb2+ {[%clk 0:01:53]} 19. Kb1 {[%clk 0:01:51]}  exd5 {[%clk 0:01:53]} 20. Rd3 {[%clk 0:01:44]}  Qb4 {[%clk 0:01:11]} 21. Rb3 {[%clk 0:01:40]}  Qxd4 {[%clk 0:01:10]} 22. Be3 {[%clk 0:01:28]}  Qe5 {[%clk 0:01:07]} 23. f4 {[%clk 0:01:25]}  Qe4 {[%clk 0:01:03]} 24. Rxb7+ {[%clk 0:01:24]}  Nge7 {[%clk 0:01:03]} 25. Rxb2 {[%clk 0:01:17]}  Qxh1 {[%clk 0:01:04]} 26. Bc5 {[%clk 0:01:01]}  Rhb8 {[%clk 0:00:54]} 27. Rxb8 {[%clk 0:00:53]}  Rxb8+ {[%clk 0:00:55]} 28. Ka2 {[%clk 0:00:53]}  d4 {[%clk 0:00:43]} 29. f5 {[%clk 0:00:52]}  Qd5+ {[%clk 0:00:43]} 30. c4 {[%clk 0:00:48]}  dxc3+ {[%clk 0:00:44]} 31. Ka1 {[%clk 0:00:47]}  Qxc5 {[%clk 0:00:43]} 32. Qe6+ {[%clk 0:00:45]}  Kf8 {[%clk 0:00:44]} 33. Qa2 {[%clk 0:00:27]}  Qxg1+ {[%clk 0:00:41]} 0-1


[Site "https://www.chess.com"]

[Event "Titled Tuesday Blitz April 25 Early 2023"]
[White "Lach, Aleksandra"]
[Black "Psakhis, Lev"]
[WhiteFideId "1134299"]
[BlackFideId "2800012"]
[WhiteElo "2111"]
[BlackElo "2056"]
[Result "1/2-1/2"]
[Round "02"]
[TimeControl "180+2"]
[Date "2023.04.25"]
[WhiteClock "0:00:17"]
[BlackClock "0:00:15"]

1. c4 {[%clk 0:03:00]}  e5 {[%clk 0:02:59]} 2. Nc3 {[%clk 0:02:58]}  Bb4 {[%clk 0:02:59]} 3. e4 {[%clk 0:02:54]}  d6 {[%clk 0:02:57]} 4. a3 {[%clk 0:02:50]}  Bc5 {[%clk 0:02:52]} 5. Nf3 {[%clk 0:02:44]}  Nc6 {[%clk 0:02:50]} 6. Be2 {[%clk 0:02:37]}  Bg4 {[%clk 0:02:47]} 7. O-O {[%clk 0:02:36]}  Bxf3 {[%clk 0:02:45]} 8. Bxf3 {[%clk 0:02:37]}  Nge7 {[%clk 0:02:44]} 9. b4 {[%clk 0:02:33]}  Bd4 {[%clk 0:02:42]} 10. Bb2 {[%clk 0:02:32]}  a6 {[%clk 0:02:37]} 11. Qc2 {[%clk 0:02:25]}  O-O {[%clk 0:02:36]} 12. Ne2 {[%clk 0:02:24]}  Bxb2 {[%clk 0:02:34]} 13. Qxb2 {[%clk 0:02:25]}  Ng6 {[%clk 0:02:26]} 14. g3 {[%clk 0:02:21]}  Qf6 {[%clk 0:02:15]} 15. Bg2 {[%clk 0:02:19]}  Qe7 {[%clk 0:01:58]} 16. Rae1 {[%clk 0:02:11]}  f6 {[%clk 0:01:50]} 17. h4 {[%clk 0:02:02]}  Rfe8 {[%clk 0:01:46]} 18. Qc3 {[%clk 0:01:55]}  Nf8 {[%clk 0:01:45]} 19. f4 {[%clk 0:01:46]}  Ne6 {[%clk 0:01:42]} 20. Qe3 {[%clk 0:01:04]}  Ned4 {[%clk 0:01:41]} 21. Qd3 {[%clk 0:00:42]}  Nxe2+ {[%clk 0:01:39]} 22. Qxe2 {[%clk 0:00:40]}  Nd4 {[%clk 0:01:39]} 23. Qg4 {[%clk 0:00:40]}  Qe6 {[%clk 0:01:33]} 24. Qxe6+ {[%clk 0:00:36]}  Rxe6 {[%clk 0:01:32]} 25. f5 {[%clk 0:00:34]}  Re7 {[%clk 0:01:30]} 26. Kf2 {[%clk 0:00:30]}  c5 {[%clk 0:01:26]} 27. Rb1 {[%clk 0:00:29]}  b5 {[%clk 0:01:20]} 28. Rfc1 {[%clk 0:00:29]}  Rc7 {[%clk 0:01:17]} 29. Bf1 {[%clk 0:00:29]}  Kf8 {[%clk 0:01:10]} 30. Ke3 {[%clk 0:00:23]}  Rac8 {[%clk 0:01:09]} 31. cxb5 {[%clk 0:00:20]}  axb5 {[%clk 0:01:08]} 32. bxc5 {[%clk 0:00:19]}  Rxc5 {[%clk 0:01:04]} 33. Rxc5 {[%clk 0:00:19]}  Rxc5 {[%clk 0:01:04]} 34. Rb2 {[%clk 0:00:20]}  Ke7 {[%clk 0:00:58]} 35. Bd3 {[%clk 0:00:19]}  Kd7 {[%clk 0:00:52]} 36. g4 {[%clk 0:00:20]}  Kc6 {[%clk 0:00:52]} 37. g5 {[%clk 0:00:20]}  Rc1 {[%clk 0:00:52]} 38. gxf6 {[%clk 0:00:19]}  gxf6 {[%clk 0:00:52]} 39. Kf2 {[%clk 0:00:17]}  Rh1 {[%clk 0:00:50]} 40. Kg3 {[%clk 0:00:17]}  Rg1+ {[%clk 0:00:48]} 41. Kh3 {[%clk 0:00:15]}  Kc5 {[%clk 0:00:44]} 42. Rb1 {[%clk 0:00:15]}  Rg8 {[%clk 0:00:22]} 43. Rc1+ {[%clk 0:00:14]}  Kb6 {[%clk 0:00:22]} 44. Rf1 {[%clk 0:00:14]}  Kc6 {[%clk 0:00:20]} 45. Rc1+ {[%clk 0:00:14]}  Kb6 {[%clk 0:00:20]} 46. h5 {[%clk 0:00:15]}  Ka5 {[%clk 0:00:17]} 47. Rc7 {[%clk 0:00:15]}  h6 {[%clk 0:00:16]} 48. Ra7+ {[%clk 0:00:15]}  Kb6 {[%clk 0:00:15]} 49. Rf7 {[%clk 0:00:16]}  Nf3 {[%clk 0:00:16]} 50. Rxf6 {[%clk 0:00:16]}  Ng1+ {[%clk 0:00:15]} 51. Kh2 {[%clk 0:00:16]}  Nf3+ {[%clk 0:00:15]} 52. Kh3 {[%clk 0:00:16]}  Ng1+ {[%clk 0:00:15]} 53. Kh2 {[%clk 0:00:17]}  Nf3+ {[%clk 0:00:15]} 54. Kh3 {[%clk 0:00:17]} 1/2-1/2


[Site "https://www.chess.com"]

[Event "Titled Tuesday Blitz April 25 Early 2023"]
[White "Maluco_do_Natal_00"]
[Black "Lima, Kleyton Alcantara"]
[BlackFideId "22718397"]
[WhiteElo "2005"]
[BlackElo "2009"]
[Result "0-1"]
[Round "02"]
[TimeControl "180+2"]
[Date "2023.04.25"]
[WhiteClock "0:00:04"]
[BlackClock "0:01:23"]

1. e4 {[%clk 0:03:00]}  c5 {[%clk 0:02:59]} 2. Nf3 {[%clk 0:03:00]}  d6 {[%clk 0:03:00]} 3. d4 {[%clk 0:03:00]}  cxd4 {[%clk 0:03:00]} 4. Nxd4 {[%clk 0:03:01]}  Nf6 {[%clk 0:03:01]} 5. Nc3 {[%clk 0:03:02]}  a6 {[%clk 0:03:02]} 6. Be3 {[%clk 0:03:02]}  e5 {[%clk 0:03:02]} 7. Nb3 {[%clk 0:03:02]}  Be6 {[%clk 0:03:03]} 8. Qd2 {[%clk 0:03:02]}  Nbd7 {[%clk 0:03:02]} 9. f3 {[%clk 0:03:02]}  h5 {[%clk 0:03:01]} 10. O-O-O {[%clk 0:03:01]}  Be7 {[%clk 0:02:58]} 11. Kb1 {[%clk 0:02:46]}  Rc8 {[%clk 0:02:58]} 12. h3 {[%clk 0:02:32]}  b5 {[%clk 0:02:48]} 13. Nd5 {[%clk 0:02:25]}  Bxd5 {[%clk 0:02:42]} 14. exd5 {[%clk 0:02:26]}  Nb6 {[%clk 0:02:42]} 15. Bxb6 {[%clk 0:02:00]}  Qxb6 {[%clk 0:02:43]} 16. Bd3 {[%clk 0:01:46]}  h4 {[%clk 0:02:14]} 17. Bf5 {[%clk 0:01:34]}  Rc7 {[%clk 0:02:06]} 18. f4 {[%clk 0:01:34]}  exf4 {[%clk 0:02:01]} 19. Qxf4 {[%clk 0:01:22]}  g6 {[%clk 0:01:55]} 20. Be4 {[%clk 0:00:55]}  Rc4 {[%clk 0:01:39]} 21. Rhe1 {[%clk 0:00:45]}  O-O {[%clk 0:01:33]} 22. Nd2 {[%clk 0:00:30]}  Rd4 {[%clk 0:01:30]} 23. Qe3 {[%clk 0:00:06]}  Nxe4 {[%clk 0:01:23]} 24. Nxe4 {[%clk 0:00:04]}  Rxd1+ {[%clk 0:01:23]} 0-1


[Site "https://www.chess.com"]

[Event "Titled Tuesday Blitz April 25 Early 2023"]
[White "Castillo Pena, Patricia Evarista"]
[Black "Mazurkiewicz, Michal"]
[WhiteFideId "6412106"]
[BlackFideId "1124943"]
[WhiteElo "1919"]
[BlackElo "2054"]
[Result "0-1"]
[Round "02"]
[TimeControl "180+2"]
[Date "2023.04.25"]
[WhiteClock "0:00:02"]
[BlackClock "0:01:11"]

1. d4 {[%clk 0:02:53]}  Nf6 {[%clk 0:02:58]} 2. Nf3 {[%clk 0:02:52]}  g6 {[%clk 0:02:59]} 3. Nc3 {[%clk 0:02:52]}  Bg7 {[%clk 0:02:59]} 4. e4 {[%clk 0:02:52]}  O-O {[%clk 0:03:00]} 5. Be3 {[%clk 0:02:49]}  d6 {[%clk 0:03:00]} 6. Qd2 {[%clk 0:02:49]}  Ng4 {[%clk 0:03:01]} 7. Bg5 {[%clk 0:02:49]}  h6 {[%clk 0:03:01]} 8. Bh4 {[%clk 0:02:49]}  c5 {[%clk 0:03:01]} 9. h3 {[%clk 0:02:46]}  cxd4 {[%clk 0:03:01]} 10. Nxd4 {[%clk 0:02:43]}  Nf6 {[%clk 0:03:01]} 11. Bc4 {[%clk 0:02:36]}  Nc6 {[%clk 0:03:00]} 12. Nf3 {[%clk 0:02:33]}  a6 {[%clk 0:03:00]} 13. O-O {[%clk 0:02:32]}  b5 {[%clk 0:03:00]} 14. Bd3 {[%clk 0:02:30]}  Bb7 {[%clk 0:02:59]} 15. Nd5 {[%clk 0:02:28]}  Nxd5 {[%clk 0:02:55]} 16. exd5 {[%clk 0:02:28]}  Ne5 {[%clk 0:02:55]} 17. Nxe5 {[%clk 0:02:26]}  Bxe5 {[%clk 0:02:56]} 18. c3 {[%clk 0:02:22]}  g5 {[%clk 0:02:53]} 19. Bxg5 {[%clk 0:02:00]}  hxg5 {[%clk 0:02:53]} 20. Qxg5+ {[%clk 0:02:01]}  Bg7 {[%clk 0:02:53]} 21. Qf5 {[%clk 0:01:58]}  Re8 {[%clk 0:02:51]} 22. Rfe1 {[%clk 0:01:50]}  Bc8 {[%clk 0:02:32]} 23. Qh7+ {[%clk 0:01:46]}  Kf8 {[%clk 0:02:33]} 24. Re3 {[%clk 0:01:35]}  e5 {[%clk 0:02:33]} 25. dxe6 {[%clk 0:01:10]}  Bxe6 {[%clk 0:02:32]} 26. Rae1 {[%clk 0:01:07]}  Qf6 {[%clk 0:02:30]} 27. Rf3 {[%clk 0:00:54]}  Qh6 {[%clk 0:02:30]} 28. Qxh6 {[%clk 0:00:42]}  Bxh6 {[%clk 0:02:30]} 29. Bg6 {[%clk 0:00:38]}  Bxa2 {[%clk 0:02:20]} 30. Rxe8+ {[%clk 0:00:35]}  Rxe8 {[%clk 0:02:21]} 31. g4 {[%clk 0:00:22]}  Re1+ {[%clk 0:02:15]} 32. Kh2 {[%clk 0:00:20]}  Bd5 {[%clk 0:02:13]} 33. Rf6 {[%clk 0:00:19]}  Bg5 {[%clk 0:02:01]} 34. Rf5 {[%clk 0:00:13]}  Re5 {[%clk 0:01:20]} 35. Rxe5 {[%clk 0:00:11]}  dxe5 {[%clk 0:01:21]} 36. Bf5 {[%clk 0:00:10]}  Bf4+ {[%clk 0:01:18]} 37. Kg1 {[%clk 0:00:10]}  Bc1 {[%clk 0:01:18]} 38. b4 {[%clk 0:00:09]}  Bd2 {[%clk 0:01:17]} 39. Bc8 {[%clk 0:00:09]}  Bxc3 {[%clk 0:01:17]} 40. Bxa6 {[%clk 0:00:09]}  Bc6 {[%clk 0:01:18]} 41. Kf1 {[%clk 0:00:08]}  Bxb4 {[%clk 0:01:18]} 42. Ke2 {[%clk 0:00:08]}  Bc5 {[%clk 0:01:18]} 43. f3 {[%clk 0:00:08]}  b4 {[%clk 0:01:18]} 44. Bc4 {[%clk 0:00:07]}  Bd7 {[%clk 0:01:13]} 45. h4 {[%clk 0:00:07]}  Be6 {[%clk 0:01:14]} 46. Bd3 {[%clk 0:00:04]}  b3 {[%clk 0:01:14]} 47. g5 {[%clk 0:00:04]}  b2 {[%clk 0:01:14]} 48. h5 {[%clk 0:00:04]}  Ba2 {[%clk 0:01:14]} 49. h6 {[%clk 0:00:04]}  b1=B {[%clk 0:01:11]} 50. Bxb1 {[%clk 0:00:02]}  Bxb1 {[%clk 0:01:11]} 0-1


[Site "https://www.chess.com"]

[Event "Titled Tuesday Blitz April 25 Early 2023"]
[White "Harriott, Tyrell"]
[Black "Vargas, Mauricio"]
[WhiteFideId "2086484"]
[BlackFideId "4404572"]
[WhiteElo "2107"]
[BlackElo "1998"]
[Result "1-0"]
[Round "02"]
[TimeControl "180+2"]
[Date "2023.04.25"]
[WhiteClock "0:02:18"]
[BlackClock "0:01:32"]

1. d4 {[%clk 0:03:00]}  Nf6 {[%clk 0:02:56]} 2. e3 {[%clk 0:03:01]}  e6 {[%clk 0:02:55]} 3. Bd3 {[%clk 0:02:58]}  b6 {[%clk 0:02:54]} 4. f4 {[%clk 0:02:58]}  Bb7 {[%clk 0:02:53]} 5. Nf3 {[%clk 0:02:58]}  d6 {[%clk 0:02:53]} 6. Nbd2 {[%clk 0:02:56]}  Nbd7 {[%clk 0:02:53]} 7. O-O {[%clk 0:02:56]}  c5 {[%clk 0:02:53]} 8. c3 {[%clk 0:02:56]}  Rc8 {[%clk 0:02:53]} 9. e4 {[%clk 0:02:51]}  g6 {[%clk 0:02:46]} 10. Qe2 {[%clk 0:02:49]}  Bg7 {[%clk 0:02:43]} 11. e5 {[%clk 0:02:49]}  dxe5 {[%clk 0:02:40]} 12. fxe5 {[%clk 0:02:49]}  Nd5 {[%clk 0:02:39]} 13. Ne4 {[%clk 0:02:48]}  O-O {[%clk 0:02:32]} 14. Nd6 {[%clk 0:02:47]}  Rc6 {[%clk 0:02:25]} 15. Nxb7 {[%clk 0:02:46]}  Qc7 {[%clk 0:02:24]} 16. Nd6 {[%clk 0:02:46]}  f6 {[%clk 0:02:21]} 17. a3 {[%clk 0:02:45]}  fxe5 {[%clk 0:02:17]} 18. dxe5 {[%clk 0:02:44]}  Nf4 {[%clk 0:02:01]} 19. Bxf4 {[%clk 0:02:42]}  Rxf4 {[%clk 0:02:02]} 20. Nb5 {[%clk 0:02:37]}  Qb8 {[%clk 0:01:58]} 21. Bc4 {[%clk 0:02:31]}  Nxe5 {[%clk 0:01:54]} 22. Nxe5 {[%clk 0:02:30]}  Rxf1+ {[%clk 0:01:53]} 23. Rxf1 {[%clk 0:02:29]}  Bxe5 {[%clk 0:01:52]} 24. g3 {[%clk 0:02:27]}  a6 {[%clk 0:01:49]} 25. Qf3 {[%clk 0:02:21]}  Qb7 {[%clk 0:01:32]} 26. Qf8# {[%clk 0:02:18]} 1-0


[Site "https://www.chess.com"]

[Event "Titled Tuesday Blitz April 25 Early 2023"]
[White "Mammadov, Ziya"]
[Black "Smiechu"]
[WhiteFideId "13418890"]
[WhiteElo "1583"]
[BlackElo "2405"]
[Result "0-1"]
[Round "02"]
[TimeControl "180+2"]
[Date "2023.04.25"]
[WhiteClock "0:01:39"]
[BlackClock "0:02:14"]

1. e4 {[%clk 0:02:54]}  c5 {[%clk 0:02:59]} 2. Nf3 {[%clk 0:02:54]}  g6 {[%clk 0:03:00]} 3. d4 {[%clk 0:02:54]}  cxd4 {[%clk 0:03:01]} 4. Nxd4 {[%clk 0:02:55]}  Nc6 {[%clk 0:03:01]} 5. Nc3 {[%clk 0:02:51]}  Bg7 {[%clk 0:03:00]} 6. Be3 {[%clk 0:02:50]}  Nf6 {[%clk 0:03:00]} 7. f3 {[%clk 0:02:49]}  O-O {[%clk 0:03:00]} 8. Bc4 {[%clk 0:02:47]}  Qb6 {[%clk 0:03:00]} 9. Bb3 {[%clk 0:02:42]}  Nxe4 {[%clk 0:02:59]} 10. Nf5 {[%clk 0:02:28]}  Nxc3 {[%clk 0:02:56]} 11. bxc3 {[%clk 0:02:29]}  Bxc3+ {[%clk 0:02:54]} 12. Kf2 {[%clk 0:02:21]}  Qb5 {[%clk 0:02:35]} 13. Nh6+ {[%clk 0:02:12]}  Kg7 {[%clk 0:02:35]} 14. Ng4 {[%clk 0:02:11]}  d6 {[%clk 0:02:29]} 15. Bh6+ {[%clk 0:02:00]}  Kg8 {[%clk 0:02:29]} 16. Bxf8 {[%clk 0:01:59]}  Kxf8 {[%clk 0:02:30]} 17. Qd3 {[%clk 0:02:00]}  Qxd3 {[%clk 0:02:27]} 18. cxd3 {[%clk 0:02:01]}  Bxa1 {[%clk 0:02:27]} 19. Rxa1 {[%clk 0:02:01]}  Bxg4 {[%clk 0:02:27]} 20. fxg4 {[%clk 0:02:01]}  Ne5 {[%clk 0:02:27]} 21. Bd5 {[%clk 0:01:58]}  Nxd3+ {[%clk 0:02:22]} 22. Kg3 {[%clk 0:01:50]}  Nc5 {[%clk 0:02:23]} 23. Rf1 {[%clk 0:01:49]}  e6 {[%clk 0:02:22]} 24. Bc4 {[%clk 0:01:48]}  d5 {[%clk 0:02:22]} 25. Bb5 {[%clk 0:01:47]}  a6 {[%clk 0:02:21]} 26. Be2 {[%clk 0:01:45]}  Ne4+ {[%clk 0:02:20]} 27. Kh3 {[%clk 0:01:45]}  Rc8 {[%clk 0:02:20]} 28. Rb1 {[%clk 0:01:44]}  b5 {[%clk 0:02:20]} 29. g3 {[%clk 0:01:42]}  Ke7 {[%clk 0:02:16]} 30. Bf3 {[%clk 0:01:39]}  Nd2 {[%clk 0:02:14]} 0-1


[Site "https://www.chess.com"]

[Event "Titled Tuesday Blitz April 25 Early 2023"]
[White "Smirnov, Pavel"]
[Black "Nakamura, Hikaru"]
[WhiteFideId "4123425"]
[BlackFideId "2016192"]
[WhiteElo "2519"]
[BlackElo "2885"]
[Result "0-1"]
[Round "03"]
[TimeControl "180+2"]
[Date "2023.04.25"]
[WhiteClock "0:01:40"]
[BlackClock "0:02:13"]

1. d4 {[%clk 0:03:00]}  Nf6 {[%clk 0:02:57]} 2. c4 {[%clk 0:03:00]}  e6 {[%clk 0:02:58]} 3. g3 {[%clk 0:03:00]}  Bb4+ {[%clk 0:02:57]} 4. Bd2 {[%clk 0:02:59]}  c5 {[%clk 0:02:58]} 5. Bxb4 {[%clk 0:02:58]}  cxb4 {[%clk 0:02:58]} 6. Bg2 {[%clk 0:02:58]}  a5 {[%clk 0:02:59]} 7. Nd2 {[%clk 0:02:52]}  d6 {[%clk 0:02:58]} 8. e3 {[%clk 0:02:48]}  Na6 {[%clk 0:02:57]} 9. Ne2 {[%clk 0:02:48]}  O-O {[%clk 0:02:57]} 10. O-O {[%clk 0:02:48]}  Ra7 {[%clk 0:02:57]} 11. a3 {[%clk 0:02:40]}  b6 {[%clk 0:02:58]} 12. axb4 {[%clk 0:02:39]}  Nxb4 {[%clk 0:02:58]} 13. Nc3 {[%clk 0:02:40]}  Ba6 {[%clk 0:02:58]} 14. e4 {[%clk 0:02:29]}  e5 {[%clk 0:02:56]} 15. d5 {[%clk 0:02:08]}  Rc7 {[%clk 0:02:45]} 16. b3 {[%clk 0:02:05]}  Nd7 {[%clk 0:02:45]} 17. f4 {[%clk 0:02:02]}  Nc5 {[%clk 0:02:30]} 18. Qf3 {[%clk 0:01:52]}  Nc2 {[%clk 0:02:22]} 19. Rab1 {[%clk 0:01:51]}  Nd4 {[%clk 0:02:20]} 20. Qe3 {[%clk 0:01:50]}  f6 {[%clk 0:02:14]} 21. h4 {[%clk 0:01:45]}  Bc8 {[%clk 0:02:14]} 22. Kh2 {[%clk 0:01:45]}  Bg4 {[%clk 0:02:12]} 23. b4 {[%clk 0:01:41]}  axb4 {[%clk 0:02:12]} 24. Rxb4 {[%clk 0:01:40]}  Nc2 {[%clk 0:02:13]} 0-1


[Site "https://www.chess.com"]

[Event "Titled Tuesday Blitz April 25 Early 2023"]
[White "Naroditsky, Daniel"]
[Black "Beerdsen, Thomas"]
[WhiteFideId "2026961"]
[BlackFideId "1030108"]
[WhiteElo "2633"]
[BlackElo "2547"]
[Result "1-0"]
[Round "03"]
[TimeControl "180+2"]
[Date "2023.04.25"]
[WhiteClock "0:00:10"]
[BlackClock "0:00:35"]

1. d4 {[%clk 0:03:00]}  Nf6 {[%clk 0:03:00]} 2. Nc3 {[%clk 0:03:01]}  g6 {[%clk 0:03:00]} 3. e4 {[%clk 0:03:00]}  d5 {[%clk 0:03:00]} 4. e5 {[%clk 0:02:58]}  Ne4 {[%clk 0:03:01]} 5. Nce2 {[%clk 0:02:58]}  f6 {[%clk 0:02:37]} 6. h4 {[%clk 0:02:43]}  fxe5 {[%clk 0:02:37]} 7. f3 {[%clk 0:02:43]}  Nd6 {[%clk 0:02:28]} 8. dxe5 {[%clk 0:02:43]}  Nf5 {[%clk 0:02:29]} 9. g4 {[%clk 0:02:35]}  Ng7 {[%clk 0:02:29]} 10. Nf4 {[%clk 0:02:33]}  c6 {[%clk 0:02:25]} 11. Bd3 {[%clk 0:02:14]}  Ne6 {[%clk 0:02:22]} 12. Nge2 {[%clk 0:02:06]}  Bg7 {[%clk 0:02:19]} 13. h5 {[%clk 0:01:52]}  gxh5 {[%clk 0:02:13]} 14. Rxh5 {[%clk 0:01:39]}  Nxf4 {[%clk 0:01:56]} 15. Bxf4 {[%clk 0:01:32]}  Nd7 {[%clk 0:01:44]} 16. Bxh7 {[%clk 0:01:26]}  Nxe5 {[%clk 0:01:42]} 17. Nd4 {[%clk 0:01:04]}  Qb6 {[%clk 0:01:36]} 18. Bxe5 {[%clk 0:00:47]}  Bxe5 {[%clk 0:01:36]} 19. Rxe5 {[%clk 0:00:47]}  Rxh7 {[%clk 0:01:35]} 20. Kf2 {[%clk 0:00:36]}  Bd7 {[%clk 0:01:11]} 21. Qd3 {[%clk 0:00:34]}  Rf7 {[%clk 0:01:03]} 22. Rae1 {[%clk 0:00:33]}  Bxg4 {[%clk 0:00:53]} 23. Kg3 {[%clk 0:00:31]}  Bxf3 {[%clk 0:00:46]} 24. Qg6 {[%clk 0:00:20]}  O-O-O {[%clk 0:00:40]} 25. Qxf7 {[%clk 0:00:20]}  Qxd4 {[%clk 0:00:40]} 26. Kxf3 {[%clk 0:00:14]}  Rh8 {[%clk 0:00:41]} 27. Qf5+ {[%clk 0:00:13]}  Kb8 {[%clk 0:00:41]} 28. Rxe7 {[%clk 0:00:13]}  a5 {[%clk 0:00:34]} 29. Qe5+ {[%clk 0:00:13]}  Qxe5 {[%clk 0:00:32]} 30. R7xe5 {[%clk 0:00:14]}  Rh3+ {[%clk 0:00:32]} 31. Ke2 {[%clk 0:00:14]}  a4 {[%clk 0:00:31]} 32. a3 {[%clk 0:00:14]}  Ka7 {[%clk 0:00:31]} 33. Kd2 {[%clk 0:00:15]}  b5 {[%clk 0:00:31]} 34. Re6 {[%clk 0:00:13]}  Kb6 {[%clk 0:00:31]} 35. R1e3 {[%clk 0:00:14]}  Rh2+ {[%clk 0:00:31]} 36. Re2 {[%clk 0:00:14]}  Rh1 {[%clk 0:00:31]} 37. Rf2 {[%clk 0:00:15]}  Kc5 {[%clk 0:00:31]} 38. Rff6 {[%clk 0:00:16]}  Rh2+ {[%clk 0:00:31]} 39. Kd3 {[%clk 0:00:16]}  Rh3+ {[%clk 0:00:31]} 40. Re3 {[%clk 0:00:15]}  Rh1 {[%clk 0:00:31]} 41. Rg3 {[%clk 0:00:16]}  Rd1+ {[%clk 0:00:31]} 42. Ke2 {[%clk 0:00:16]}  Rb1 {[%clk 0:00:31]} 43. Rgg6 {[%clk 0:00:16]}  Rxb2 {[%clk 0:00:30]} 44. Rxc6+ {[%clk 0:00:16]}  Kd4 {[%clk 0:00:30]} 45. Rg4+ {[%clk 0:00:16]}  Ke5 {[%clk 0:00:30]} 46. Rb4 {[%clk 0:00:15]}  Ra2 {[%clk 0:00:30]} 47. Rxb5 {[%clk 0:00:11]}  Rxa3 {[%clk 0:00:31]} 48. Rcc5 {[%clk 0:00:10]}  Kd4 {[%clk 0:00:32]} 49. Rxd5+ {[%clk 0:00:10]}  Kc4 {[%clk 0:00:33]} 50. Rdc5+ {[%clk 0:00:09]}  Kd4 {[%clk 0:00:33]} 51. Kd2 {[%clk 0:00:09]}  Ra2 {[%clk 0:00:32]} 52. Rd5+ {[%clk 0:00:09]}  Kc4 {[%clk 0:00:33]} 53. Rdc5+ {[%clk 0:00:10]}  Kd4 {[%clk 0:00:33]} 54. Rh5 {[%clk 0:00:10]}  Kc4 {[%clk 0:00:33]} 55. Rbg5 {[%clk 0:00:09]}  Kb4 {[%clk 0:00:34]} 56. Rg4+ {[%clk 0:00:08]}  Ka3 {[%clk 0:00:35]} 57. Rh3+ {[%clk 0:00:09]}  Kb2 {[%clk 0:00:35]} 58. Rb4+ {[%clk 0:00:10]}  Ka1 {[%clk 0:00:35]} 59. Rh1# {[%clk 0:00:10]} 1-0


[Site "https://www.chess.com"]

[Event "Titled Tuesday Blitz April 25 Early 2023"]
[White "Caruana, Fabiano"]
[Black "Shomoev, Anton"]
[WhiteFideId "2020009"]
[BlackFideId "4135148"]
[WhiteElo "2837"]
[BlackElo "2451"]
[Result "1-0"]
[Round "03"]
[TimeControl "180+2"]
[Date "2023.04.25"]
[WhiteClock "0:00:25"]
[BlackClock "0:00:07"]

1. e4 {[%clk 0:03:00]}  c5 {[%clk 0:02:51]} 2. Nf3 {[%clk 0:02:59]}  d6 {[%clk 0:02:51]} 3. d4 {[%clk 0:03:00]}  cxd4 {[%clk 0:02:52]} 4. Nxd4 {[%clk 0:03:01]}  Nf6 {[%clk 0:02:53]} 5. Nc3 {[%clk 0:03:01]}  a6 {[%clk 0:02:53]} 6. Rg1 {[%clk 0:03:02]}  h6 {[%clk 0:02:43]} 7. g4 {[%clk 0:03:02]}  g5 {[%clk 0:02:42]} 8. Be3 {[%clk 0:03:00]}  Nbd7 {[%clk 0:02:42]} 9. Qd2 {[%clk 0:02:59]}  Ne5 {[%clk 0:02:42]} 10. f3 {[%clk 0:02:58]}  e6 {[%clk 0:02:38]} 11. O-O-O {[%clk 0:02:58]}  Nfd7 {[%clk 0:02:39]} 12. h4 {[%clk 0:02:56]}  Be7 {[%clk 0:02:38]} 13. Rh1 {[%clk 0:02:57]}  Ng6 {[%clk 0:02:32]} 14. hxg5 {[%clk 0:02:53]}  hxg5 {[%clk 0:02:33]} 15. Rh5 {[%clk 0:02:50]}  Nde5 {[%clk 0:02:31]} 16. Bxg5 {[%clk 0:02:40]}  Bxg5 {[%clk 0:02:25]} 17. Rxg5 {[%clk 0:02:40]}  Qf6 {[%clk 0:02:18]} 18. Rh5 {[%clk 0:02:29]}  Rxh5 {[%clk 0:02:01]} 19. gxh5 {[%clk 0:02:30]}  Nf4 {[%clk 0:02:02]} 20. Nf5 {[%clk 0:02:28]}  Nxh5 {[%clk 0:01:50]} 21. Nxd6+ {[%clk 0:02:27]}  Kf8 {[%clk 0:01:50]} 22. Nc4 {[%clk 0:01:52]}  Nxc4 {[%clk 0:01:44]} 23. Bxc4 {[%clk 0:01:53]}  Qf4 {[%clk 0:01:32]} 24. a4 {[%clk 0:01:20]}  Ke7 {[%clk 0:01:23]} 25. a5 {[%clk 0:01:06]}  Bd7 {[%clk 0:01:21]} 26. Ne2 {[%clk 0:01:05]}  Qxd2+ {[%clk 0:01:20]} 27. Kxd2 {[%clk 0:01:05]}  Rc8 {[%clk 0:01:16]} 28. b3 {[%clk 0:01:04]}  Rg8 {[%clk 0:01:13]} 29. Ke3 {[%clk 0:01:03]}  Rg2 {[%clk 0:01:12]} 30. Rh1 {[%clk 0:00:58]}  Ng3 {[%clk 0:01:03]} 31. Rg1 {[%clk 0:00:56]}  Rxg1 {[%clk 0:01:01]} 32. Nxg1 {[%clk 0:00:57]}  e5 {[%clk 0:00:59]} 33. Bd5 {[%clk 0:00:51]}  Bc8 {[%clk 0:00:58]} 34. c4 {[%clk 0:00:47]}  f5 {[%clk 0:00:46]} 35. Ne2 {[%clk 0:00:47]}  f4+ {[%clk 0:00:44]} 36. Kd3 {[%clk 0:00:47]}  Kd6 {[%clk 0:00:38]} 37. b4 {[%clk 0:00:45]}  Nf1 {[%clk 0:00:31]} 38. Nc3 {[%clk 0:00:41]}  Kc7 {[%clk 0:00:25]} 39. Bf7 {[%clk 0:00:40]}  Bh3 {[%clk 0:00:20]} 40. Nd5+ {[%clk 0:00:39]}  Kc6 {[%clk 0:00:18]} 41. Be8+ {[%clk 0:00:37]}  Kd6 {[%clk 0:00:18]} 42. c5+ {[%clk 0:00:37]}  Ke6 {[%clk 0:00:18]} 43. b5 {[%clk 0:00:30]}  axb5 {[%clk 0:00:17]} 44. c6 {[%clk 0:00:30]}  bxc6 {[%clk 0:00:14]} 45. a6 {[%clk 0:00:30]}  cxd5 {[%clk 0:00:11]} 46. a7 {[%clk 0:00:30]}  dxe4+ {[%clk 0:00:12]} 47. fxe4 {[%clk 0:00:29]}  Ne3 {[%clk 0:00:07]} 48. a8=Q {[%clk 0:00:28]}  Bf1+ {[%clk 0:00:08]} 49. Kd2 {[%clk 0:00:27]}  Bc4 {[%clk 0:00:07]} 50. Qd8 {[%clk 0:00:25]} 1-0


[Site "https://www.chess.com"]